Cogmind - Beta 11.1 @@@ ROGUE MODE // 2022.10.15 @ 18:47:08 Player: Beepinex Result: Destroyed by G-34 Mercenary with Small Laser Performance ------------- Evolutions (1) 500 Regions Visited (2) 400 Robots Destroyed (102) 510 Value Destroyed (2350) 2350 Prototype IDs (4) 80 Alien Tech Used (0) 0 Bonus (999) 999 TOTAL SCORE: 4839 Bonus ------- High Alert Combat Kills 999 Cogmind --------- Core Integrity 0/400 Matter 279/300 Energy 27/250 System Corruption 14% Temperature Cool (22) Movement Walking (190) Ox1 Location -9/Materials Parts ------- > --- POWER (1) -------- Ion Engine > --- PROPULSION (2) --- Aluminum Leg Aluminum Leg > --- UTILITY (4) ------ Medium Storage Unit Improved Targeting Computer Improved Targeting Computer > --- WEAPON (2) ------- EM Pulse Cannon > --- INVENTORY (10) --- Ion Engine Faulty Heavy Ion Engine Aluminum Leg Aluminum Leg Aluminum Leg Medium Storage Unit Improved Targeting Computer Mini Grenade Launcher Mini Grenade Launcher Peak State ------------ > --- POWER ------------ Improved Ion Engine > --- PROPULSION ------- Light Treads Light Treads > --- UTILITY ---------- Medium Storage Unit Medium Battery Improved Targeting Computer Hardened Light Armor Plating > --- WEAPON ----------- EM Pulse Cannon Mini Grenade Launcher > --- INVENTORY -------- Ion Engine Light Ion Engine Heavy Ion Engine Small Storage Unit Hardened Light Armor Plating EM Pulse Cannon EM Pulse Cannon EM Pulse Cannon Mini Grenade Launcher [Rating: 16] Favorites ----------- Power Ion Engine Engine Ion Engine Propulsion Wheel Treads Light Treads Leg Aluminum Leg Wheel Wheel Utility Improved Targeting Computer Device Improved Terrain Scanner Storage Medium Storage Unit Processor Improved Targeting Computer Protection Hardened Light Armor Plating Weapon EM Pulse Cannon Energy Gun Medium Laser Energy Cannon EM Pulse Cannon Launcher Mini Grenade Launcher Build | -11 -10 -9 ------- Run | Scr Mat Mat Slots Evolved 2 | . . 2 Power . | . . . Propulsion . | . . . Utility 2 | . . 2 Weapon . | . . . Parts Attached 44 | 7 10 27 Power 6 | 1 1 4 Engine 6 | 1 1 4 Core . | . . . Reactor . | . . . Propulsion 16 | 2 3 11 Treads 6 | . . 6 Leg 5 | . . 5 Wheel 5 | 2 3 . Hover . | . . . Flight . | . . . Utility 9 | 2 1 6 Device 1 | 1 . . Storage 4 | 1 . 3 Processor 2 | . . 2 Hackware . | . . . Protection 2 | . 1 1 Artifact . | . . . Weapon 13 | 2 5 6 Energy Gun 3 | 2 1 . Energy Cannon 7 | . 2 5 Ballistic Gun . | . . . Ballistic Cannon . | . . . Launcher 3 | . 2 1 Special Weapon . | . . . Impact Weapon . | . . . Slashing Weapon . | . . . Piercing Weapon . | . . . Special Melee Weapon . | . . . Unidentified Prototypes . | . . . Corrupted Parts 2 | . . 2 System Corruption 8 | . . 8 Parts Lost 13 | . 4 9 Power 1 | . . 1 Propulsion 6 | . 3 3 Utility 4 | . 1 3 Weapon 2 | . . 2 Highest Loss Streak 6 | . 2 6 To Critical Strikes . | . . . Average Slot Usage (%) 85 | . 90 82 Engine 11 | . 13 10 Treads 4 | . . 6 Leg 4 | . . 7 Wheel 10 | . 23 3 Storage 13 | . 14 13 Processor 8 | . . 12 Protection 7 | . 10 6 Energy Gun 2 | . 5 . Energy Cannon 10 | . 10 10 Launcher 10 | . 9 10 Naked Turns . | . . . Heaviest Build 34 | 15 22 34 Greatest Support 40 | 26 26 40 Greatest Overweight (x) 10 | . 2 10 Average Overweight (x) . | . . 1 Largest Inventory Capacity 10 | 8 8 10 Average Capacity 8 | 7 8 9 Most Carried 10 | 4 7 10 Average Carried 5 | 2 4 6 Final Capacity 10 | 8 8 10 Final Carried 9 | 2 6 9 Class Distribution -------------------- 63% | Mutant 36% | Scavenger-Mutant Dominant Class ---------------- Mutant | -10/Materials Scavenger-Mutant | -9/Materials Resources | -11 -10 -9 ----------- Run | Scr Mat Mat Matter Collected 1166 | 310 263 593 Remotely . | . . . Salvage Created 2964 | 219 1062 1683 Parts 169 | 13 67 89 Haulers Intercepted 5 | . 2 3 Recyclers Shooed . | . . . Parts Field Recycled . | . . . Retrieved Matter . | . . . Parts Self-Destructed . | . . . Prevented . | . . . Kills | -11 -10 -9 ------- Run | Scr Mat Mat Combat Hostiles Destroyed 64 | . 31 33 Guns 4 | . 4 . Cannons 25 | . 11 14 AOE 34 | . 15 19 Classes Destroyed 13 | 3 6 4 Worker 9 | 2 1 6 Builder 6 | . 4 2 Tunneler 6 | 5 1 . Hauler 5 | . 2 3 Recycler 4 | 1 . 3 Mechanic 1 | . . 1 Operator 4 | . 1 3 Watcher 5 | . 3 2 Swarmer 12 | . 9 3 Grunt 43 | . 22 21 Duelist 5 | . . 5 Protector 1 | . . 1 Sentry 3 | . . 3 Best Kill Streak 14 | 5 12 14 Combat Bots Only 10 | . 8 10 Max Kills in Single Turn 4 | 1 3 4 Gunslinging . | . . . Exploded 3 | . 3 3 Melee . | . . . Uniques/NPCs Destroyed . | . . . Combat | -11 -10 -9 -------- Run | Scr Mat Mat Damage Taken 2417 | . 709 1708 Core 538 | . 136 402 Absorbed by Shields . | . . . Regen/Repaired (Parts) 106 | . 43 63 Core Remaining (%) 72 | 100 45 . Volleys Fired 221 | 32 97 92 Largest 2 | 1 2 2 Hottest 100 | 50 100 93 Shots Fired 237 | 32 101 104 Gun 72 | 32 40 . Cannon 117 | . 41 76 Launcher 48 | . 20 28 Special . | . . . Kinetic . | . . . Thermal 72 | 32 40 . Explosive 48 | . 20 28 Electromagnetic 117 | . 41 76 Robot Hit Streak 20 | 5 9 20 Robot Miss Streak 4 | 4 3 2 Penetration Max . | . . . Secondary Targets . | . . . Shots Hit Robots 160 | 20 69 71 Core Hits 127 | 8 52 67 Critical Kills . | . . . Critical Parts Destroyed . | . . . Critical Strikes 8 | 3 4 1 Burn 7 | 3 4 . Corrupt 1 | . . 1 Melee Attacks . | . . . Impact . | . . . Slashing . | . . . Piercing . | . . . Sneak Attacks . | . . . Combat Hostiles . | . . . Follow-up Attacks . | . . . Damage Inflicted 7037 | 250 2552 4235 Guns 624 | 250 374 . Cannons 2253 | . 714 1539 Explosions 4152 | . 1463 2689 Melee . | . . . Ramming 8 | . 1 7 Kinetic . | . . . Thermal 1161 | 250 545 366 Explosive 3615 | . 1292 2323 Electromagnetic 2253 | . 714 1539 Impact . | . . . Slashing . | . . . Piercing . | . . . Highest Corruption 14 | . 1 14 Average Corruption 9 | . 1 10 Corruption Purged . | . . . Corruption Blocked . | . . . Effects 54 | . 6 48 Message Errors 13 | . . 13 Matter Fused 13 | . 2 11 Heat Flow Errors 2 | . . 2 Energy Discharges 8 | . 1 7 Parts Rejected 1 | . . 1 Data Loss (minor) 5 | . 1 4 Data Loss (major) 2 | . . 2 Misfires 4 | . . 4 Alerts 3 | . 2 1 Misdirections 1 | . . 1 Weapon Failures 2 | . . 2 Overload Shots . | . . . Overflow Damage 252 | . 158 94 Projectiles 78 | . 46 32 Explosions 174 | . 112 62 Melee . | . . . Knockbacks . | . . . Impact . | . . . Kinetic . | . . . Secondary . | . . . Self-Inflicted Damage 423 | . 84 339 Shots 14 | . 3 11 Rammed 6 | . 3 3 Targets Rammed 6 | . 3 3 Kicked . | . . . Crushed . | . . . Highest Temperature 422 | 130 276 422 Average Temperature 98 | 41 103 107 Received Heat Transfer 801 | . 258 543 Effects 10 | . 2 8 Shutdowns 2 | . . 2 Energy Bleed 1 | . 1 . Interference 5 | . 1 4 Short Circuit 2 | . . 2 Siege Activations . | . . . Robots Corrupted 1 | . . 1 Combat Hostiles . | . . . Parts Fried 9 | . 3 6 Impact Corruptions . | . . . Robots Melted 2 | 1 1 . Combat Hostiles 1 | . 1 . Parts Melted 5 | 2 3 . Heat Transferred 2968 | 962 1556 450 Parts Sabotaged . | . . . Parts Stolen . | . . . Parts Stripped . | . . . Power Chain Reactions 6 | . 1 5 Missiles Intercepted . | . . . Alert | -11 -10 -9 ------- Run | Scr Mat Mat Peak Influence 1546 | 40 1247 1546 Initial 506 | . 26 506 Average 802 | 19 530 1031 Maximum Alert Level 4 | . 4 4 Low Security (%) 12 | 100 21 . Level 1 9 | . 27 . Level 2 11 | . 17 9 Level 3 33 | . 18 44 Level 4 33 | . 15 46 Level 5 . | . . . High Security . | . . . Max Security . | . . . Squads Dispatched 21 | . 9 12 Investigation 14 | . 8 6 Extermination . | . . . Reinforcement 2 | . 1 1 Assault 5 | . . 5 Garrison . | . . . Intercept . | . . . Searches Triggered . | . . . Construction Impeded . | . . . Haulers Reinforced . | . . . Active Scanning Responses . | . . . Cargo Convoy Interrupts . | . . . Stealth | -11 -10 -9 --------- Run | Scr Mat Mat Distress Signals 6 | . 4 2 Communications Jammed . | . . . Distress Signals . | . . . Times Spotted 89 | . 39 50 Peak Tracking Total 8 | . 5 8 Tactical Retreats 2 | . 1 1 Traps | -11 -10 -9 ------- Run | Scr Mat Mat Traps Triggered 3 | . 2 1 Indirectly . | . . . Trap Hack Attempts . | . . . Triggered . | . . . Disarmed . | . . . Reprogrammed . | . . . Reused . | . . . Traps Extracted . | . . . Installed . | . . . Triggered . | . . . Machines | -11 -10 -9 ---------- Run | Scr Mat Mat Machines Disabled 13 | . 4 9 Max in Single Turn 2 | . 2 2 Machines Sabotaged . | . . . Garrisons Compromised . | . . . Overloaded Fab Kills . | . . . Hacking | -11 -10 -9 --------- Run | Scr Mat Mat Machines Accessed 19 | . 9 10 Terminals 13 | . 6 7 Fabricators . | . . . Repair Stations 2 | . 1 1 Recycling Units 3 | . 2 1 Scanalyzers 1 | . . 1 Garrison Access . | . . . Total Hacks 83 | . 42 41 Successful 55 | . 30 25 Failed 28 | . 12 16 Catastrophic 4 | . 2 2 Database Lockouts . | . . . Manual 73 | . 37 36 Terminals 63 | . 31 32 Fabricators . | . . . Repair Stations 8 | . 3 5 Recycling Units 11 | . 8 3 Scanalyzers 1 | . . 1 Garrison Access . | . . . Terminal Hacks 16 | . 10 6 Robot Analysis 2 | . 2 . Prototype ID Bank 3 | . 1 2 Level Access Points 1 | . 1 . Terminal Index 2 | . 1 1 Recycling Unit Index 2 | . 1 1 Scanalyzer Index 1 | . . 1 Patrol Status 1 | . 1 . Assault Status 1 | . 1 . Hauler Manifests 1 | . . 1 Zone Layout 2 | . 2 . Fabricator Hacks . | . . . Repair Station Hacks 7 | . 3 4 Scan Component 4 | . 2 2 Repair 3 | . 1 2 Recycling Unit Hacks 1 | . 1 . Report Inventory 1 | . 1 . Scanalyzer . | . . . Garrison Access Hacks . | . . . Unauthorized Hacks 31 | . 16 15 Terminals 22 | . 10 12 Track 7 | . 3 4 Botnet 10 | . 4 6 Disrupt 2 | . 1 1 Operators 3 | . 2 1 Fabricators . | . . . Repair Stations . | . . . Recycling Units 8 | . 6 2 Monitor 1 | . 1 . Reject 3 | . 2 1 Recyclers 3 | . 2 1 Mask 1 | . 1 . Scanalyzers 1 | . . 1 Extract 1 | . . 1 Garrison Access . | . . . Data Cores Recovered 2 | . . 2 Used 1 | . . 1 Hacking Detections 17 | . 8 9 Full Trace Events 16 | . 8 8 Feedback Events 3 | . 1 2 Corruption 3 | . 1 2 Feedback Blocked . | . . . Robot Schematics Acquired . | . . . Robots Built . | . . . Authchips . | . . . Time . | . . . Total Robot Build Rating . | . . . Part Schematics Acquired 3 | . . 3 Parts Built . | . . . Authchips . | . . . Time . | . . . Total Part Build Rating . | . . . Parts Repaired 3 | . 1 2 Time 90 | . 26 64 Parts Recycled . | . . . Recycled Matter . | . . . Retrieved Matter . | . . . Retrieved Components . | . . . Parts Scanalyzed . | . . . Part Schematics Acquired . | . . . Parts Damaged . | . . . Bothacking | -11 -10 -9 ------------ Run | Scr Mat Mat Used RIF Installer . | . . . Robots Hacked . | . . . Non-combat . | . . . Combat . | . . . Robot Hacks Applied . | . . . Relay Couplers Released . | . . . Fabnet Peak Effective % . | . . . Robots Rewired . | . . . Allies Hacked . | . . . Hacks Repelled . | . . . Allies | -11 -10 -9 -------- Run | Scr Mat Mat Total Allies . | . . . Largest Group . | . . . Highest-Rated Group . | . . . Highest-Rated Ally . | . . . Total Orders . | . . . Ally Attacks . | . . . Total Damage . | . . . Kills . | . . . Allies Corrupted . | . . . Allies Melted . | . . . Intel | -11 -10 -9 ------- Run | Scr Mat Mat Robot Analysis Total 2 | . 2 . Derelict Logs Recovered . | . . . Drone Launches . | . . . Drone Recoveries . | . . . Exploration | -11 -10 -9 ------------- Run | Scr Mat Mat Turns Passed 2715 | 152 932 1631 Spaces Moved 1421 | 81 602 738 Core 51 | 3 . 48 Treads 241 | . . 241 Legs 217 | . . 217 Wheels 912 | 78 602 232 Hover . | . . . Flight . | . . . Fastest Speed 50 | 50 90 80 Average Speed 133 | 88 94 169 Slowest Speed 550 | 90 110 550 Overloaded Moves . | . . . Propulsion Burnouts . | . . . Robots Hopped . | . . . Cave-ins Triggered . | . . . Exploration Rate (%) 46 | 4 87 49 Regions Visited 2 Branch Regions . Pre-discovered Areas . | . . . Known Exits Taken 1 | . 1 . Unknown Exits Taken 1 | 1 . . Scrap Searched . | . . . Spaces Dug 10 | . . 10 Terrain Destroyed 349 | . 171 178 Melee . | . . . Projectile . | . . . AOE 349 | . 171 178 Terrain Rammed . | . . . Walls Destroyed . | . . . Machines Disabled . | . . . Actions | -11 -10 -9 --------- Run | Scr Mat Mat Total 1999 | 128 865 1006 Wait 243 | . 137 106 Move 1419 | 80 601 738 Hop . | . . . Pick Up 47 | 8 12 27 Fast Attach 3 | 2 . 1 Attach 28 | 5 8 15 Detach 3 | . 2 1 Swap 13 | . 2 11 Drop 16 | 1 3 12 Fire 221 | 32 97 92 Melee . | . . . Ram 6 | . 3 3 Kick . | . . . Crush . | . . . Escape Stasis . | . . . Rewire . | . . . Trap . | . . . Miscellaneous . | . . . Route ------- -11/Scrapyard -10/Materials (discovered 4 exits: *Mat x3 / [*Min]) -9/Materials (discovered 1 exit: [*Mat]) History --------- Turn | Location | Event 18 | -11/Scrapyard | Discovered new exit (range 16) 153 | -11/Scrapyard | Entered Materials 321 | -10/Materials | Discovered new exit (range 16) 323 | -10/Materials | Build established: Mutant 525 | -10/Materials | Discovered new exit (range 10) 533 | -10/Materials | Identified exit to Materials 706 | -10/Materials | Repaired Ion Engine 726 | -10/Materials | Core integrity fell below 50% 792 | -10/Materials | Destroyed 8 combat bots 1053 | -10/Materials | Discovered new exit (range 7) 1085 | -10/Materials | Entered another Materials area 1085 | -9/Materials | Evolved 2 slots: Utility x2 1442 | -9/Materials | System corruption reached 10% 1679 | -9/Materials | Discovered new exit (range 16) 1784 | -9/Materials | Build established: Scavenger-Mutant 1885 | -9/Materials | First assault squad dispatched 1973 | -9/Materials | Core integrity fell below 50% 1986 | -9/Materials | Destroyed 10 combat bots 2001 | -9/Materials | Core integrity fell below 20% 2023 | -9/Materials | Lost 6 parts (1p2n2u1w) 2382 | -9/Materials | Repaired EM Pulse Cannon 2410 | -9/Materials | Repaired Ion Engine 2716 | -9/Materials | Destroyed by G-34 Mercenary with Small Laser Last Messages --------------- 02680_ Katana fried. 02680_ Melee Analysis Suite fried. 02680_ L-31 Rogue destroyed. 02683_ System corrupted: Component data lost. 02685_ ALERT: Significant disruption in Zone 1Z, multiple assault carriers dispatched. 02685_ K-01 Serf collects debris. 02686_ Acquired Aluminum Leg. 02690_ K-01 Serf collects debris. 02693_ Acquired Aluminum Leg. 02694_ S-10 Pest destroyed. 02694_ K-01 Serf destroyed. 02694_ S-10 Pest destroyed. 02702_ L-31 Rogue destroyed. 02705_ System corrupted: FCS attempts to trigger Mni. Grenade Launcher. 02705_ System corrupted: Mni. Grenade Launcher misfires. 02705_ G-34 Mercenary destroyed. 02705_ K-01 Serf destroyed. 02712_ Acquired 29 matter. 02714_ U-05 Engineer builds a Door. Map ----- +----------------------------------------------------+ | ###### # ""S"" #???????????????????????????? | | ##+#####??# # """" #???????????????????????????? | | """ #??# # #????????? ?????????????????? | | "T" ####+##########???????? #????????????????? | | ## % #??????# #????????????????? | | ## """ """ #?????# ????????????????? | | "" """ ## """ """ #???? ?????????????????? | | "" """ ## """ """ #??? ???????????????????? | | "" """ ## #?? ?????????????????????? | | ##% #? #??????????????????????? | | ####+###############+## #####??????????????????? | | ?????????????????# / ???????????????????? | | ?????????????????# #??????????????????????? | | ?????????????????# #??????????????????????? | | ????????????????###+#######??????????????????????? | | ????????????????# #??????????????????????? | | ????????????????# #??????????????????????? | | ????????????????# #??????????????????????? | | ????????????????# """ """ #??????????????????????? | | ????????????????# """ """ #??????????????????????? | | ????????????????# """ """ #??????????????????????? | | ????????????????# #??????????????????????? | | ????????????????# !u #??????????????????????? | | ????????????????### + ####?????????????????????? | | ?????????# #### % #####?????????????????? | | ?????????# g%gb */@=*g + ?????????????? | | ?????????# #### = %*#####?????????????????? | | ?????????????????# == #[#?????????????????????? | | ?????????????????# ### #?????????????????????? | | ?????????????????# """ #?? #?????????????????????? | | ?????????????????# """ #?? #?????????????????????? | | ?????????????????# """ #???#?????????????????????? | | ?????????????????# #?????????????????????????? | | ?????????????????# #?????????????????????????? | | ?????????????????#######?????????????????????????? | | ?????????????????????????????????????????????????? | | ?????????????????????????????????????????????????? | | ?????????????????????????????????????????????????? | | ?????????????????????????????????????????????????? | | ?????????????????????????????????????????????????? | | ?????????????????????????????????????????????????? | | ?????????????????????????????????????????????????? | | ?????????????????????????????????????????????????? | | ?????????????????????????????????????????????????? | | ?????????????????????????????????????????????????? | | ?????????????????????????????????????????????????? | | ?????????????????????????????????????????????????? | | ?????????????????????????????????????????????????? | | ?????????????????????????????????????????????????? | | ?????????????????????????????????????????????????? | +----------------------------------------------------+ Best States ------------- Heat Dissipation 28 Energy Generation 12 Energy Capacity 415 Matter Stores 300 Matter Capacity 450 Sight Range 16 Terrain Scan Range 16 Terrain Scan Density 10 Armor Coverage 150 Evasion (%) 44 Targeting Accuracy 12 Recoil Reduction 2 Item Schematics ----------------- VTOL Module | -9/Materials | Extracted Lgt. Assault Rifle | -9/Materials | Extracted Sml. Laser | -9/Materials | Extracted Robot Schematics ------------------ None Fabricated ------------ Nothing Alien Tech Used ----------------- None Achievements -------------- Maybe Next Time I'll Detach My Launcher Challenges ------------ None Game ------ Seed HypervelocityGatlingNetwork Manual? 0 Play Time 00:43:27 Cumulative 22.8 hours Start 2022.10.15 @ 18:06:34 End 2022.10.15 @ 18:47:08 Sessions 1 Manual Loads 0 Difficulty Rogue Special Mode None Game No. 44 Rogue 44 Adventurer 0 Explorer 0 Win Type - Total 0 Types 0/0/0/0/0/0/0/0/0 Lore% 18 Gallery% 20 Achievement% 23 Wizard Run 0 Options --------- ASCII 0 Keyboard 0 Movement Mouse Keybinds 0 Fullscreen 2 Font 18/TerminusBold Map View 76x50 Tactical HUD 1 Map Filters NONE Filters NONE Steam 1 RUN: 6963a7aa-5a52-493b-b0a6-0921a165db03